bitfinex-derivatives/quotes_SOLF0:USTF0_20250509
["timestamp","ask_amount","ask_price","bid_price","bid_amount"]
[1746770942940,27.46,162.75,162.71,1.0]
[1746770944038,6.1464,162.72,162.71,1.0]
[1746770944338,33.5864,162.72,162.71,1.0]
[1746770946230,27.44,162.72,162.64,33.55739624]
[1746770946435,27.44,162.71,162.64,6.11739624]
[1746770946640,6.1477,162.69,162.65,6.1488]
[1746770946840,29.4736,162.71,162.65,6.1488]
[1746770947240,6.1484,162.67,162.64,6.1493]
[1746770947440,4.0189,162.7,162.64,6.1493]
[1746770949138,4.0189,162.7,162.65,6.149]
[1746770950137,6.1482,162.68,162.65,6.149]
[1746770950341,4.0189,162.7,162.66,6.1486]
[1746770951043,29.4736,162.71,162.62,6.11739624]
[1746770951545,35.6206,162.71,162.67,6.148]
[1746770952539,29.4736,162.71,162.67,6.148]
[1746770952745,29.4736,162.71,162.62,6.11739624]
[1746770953646,6.1477,162.69,162.62,6.11739624]
[1746770953847,29.4736,162.71,162.62,6.11739624]
[1746770954143,29.4736,162.71,162.62,8.04619624]
[1746770954445,35.6206,162.71,162.67,6.1483]
[1746770954641,29.4736,162.71,162.63,27.46]
[1746770955645,6.1476,162.69,162.65,6.1489]
[1746770955939,2.0336,162.71,162.63,27.46]
[1746770956849,6.1472,162.7,162.67,6.1483]
[1746770957047,27.44,162.72,162.65,6.11739624]
[1746770957440,27.44,162.72,162.69,6.1472]
[1746770958546,27.44,162.72,162.7,6.1471]
[1746770961544,27.44,162.72,162.69,6.1474]
[1746770961740,27.44,162.72,162.67,27.44]
[1746770962542,6.1468,162.71,162.65,6.11739624]
[1746770962742,6.1468,162.71,162.65,33.55739624]
[1746770962944,27.44,162.72,162.65,6.11739624]
[1746770963144,27.44,162.72,162.66,27.44]
[1746770963344,33.5865,162.72,162.66,27.44]
[1746770963644,33.5865,162.72,162.65,6.11739624]
[1746770963849,33.5865,162.72,162.68,6.1476]
[1746770964048,33.5865,162.72,162.66,27.44]
[1746770964952,33.5865,162.72,162.69,6.1475]
[1746770965648,33.5865,162.72,162.66,27.44]
[1746770966051,33.5865,162.72,162.68,6.1476]
[1746770969448,33.5865,162.72,162.69,6.1475]
[1746770970047,27.44,162.72,162.69,6.1475]
[1746770970754,33.5865,162.72,162.69,6.1475]
[1746770973355,33.5865,162.72,162.68,6.1477]
[1746770974756,33.5865,162.72,162.69,6.1475]
[1746770975459,33.5865,162.72,162.68,6.1478]
[1746770976357,6.1468,162.71,162.68,6.1478]
[1746770976553,27.44,162.72,162.66,33.5885]
[1746770976754,27.44,162.72,162.66,6.1485]
[1746770976955,6.1476,162.69,162.62,1.9288]
[1746770977256,27.44,162.71,162.63,6.1497]
[1746770977454,6.1484,162.67,162.63,6.1497]
[1746770978355,6.1484,162.67,162.61,54.88]
[1746770978356,6.1484,162.67,162.64,6.1493]
[1746770979257,33.588,162.68,162.64,6.1493]
[1746770981169,33.588,162.68,162.65,6.149]
[1746770983971,27.44,162.68,162.66,6.1486]
[1746770984363,27.44,162.68,162.61,54.88]
[1746770984563,27.44,162.68,162.66,6.1486]
[1746770985569,27.44,162.68,162.67,6.1483]
[1746770986571,61.0269,162.71,162.67,6.1483]
[1746770988971,61.0269,162.71,162.67,7.1483]
[1746770989174,6.1472,162.7,162.67,1.0]
[1746770990174,6.1476,162.69,162.67,1.0]
[1746770992269,6.1479,162.68,162.67,1.0]
[1746771006276,6.1495,162.64,162.59,27.44]
[1746771006483,6.1495,162.64,162.6,3.92067895]
[1746771007282,6.1495,162.64,162.61,6.1503]
[1746771008483,6.1492,162.65,162.62,6.1501]
[1746771009685,33.5688,162.66,162.63,6.1497]
[1746771009983,27.42,162.66,162.58,27.42]
[1746771010283,6.1492,162.65,162.58,27.42]
[1746771010878,6.1492,162.65,162.61,6.1503]
[1746771011279,27.42,162.66,162.61,6.1503]
[1746771011280,6.1495,162.64,162.61,6.1503]
[1746771012385,6.1495,162.64,162.6,6.1508]
[1746771012689,6.1495,162.64,162.58,27.42]
[1746771012885,6.1492,162.65,162.58,27.42]
[1746771013186,6.1492,162.65,162.61,6.1503]
[1746771013590,6.1494,162.64,162.61,6.1503]
[1746771014086,27.42,162.66,162.59,6.12805579]
[1746771015488,27.42,162.66,162.64,6.1493]
[1746771016589,27.42,162.66,162.63,6.1497]
[1746771016790,27.42,162.66,162.59,6.12805579]
[1746771017592,27.42,162.66,162.64,6.1492]
[1746771017793,27.42,162.66,162.59,6.12805579]
[1746771017986,27.42,162.66,162.65,6.149]
[1746771018289,27.42,162.69,162.65,6.149]
[1746771018992,6.1479,162.68,162.65,6.149]
[1746771019792,6.1479,162.68,162.64,6.1493]
[1746771019988,27.42,162.69,162.58,27.42]
[1746771020190,27.42,162.69,162.56,6.12805579]
[1746771020492,27.42,162.69,162.61,6.1504]
[1746771020791,27.42,162.69,162.57,29.4048]
[1746771020994,27.42,162.69,162.61,6.1505]
[1746771021692,27.42,162.69,162.57,29.4048]
[1746771021693,6.1494,162.65,162.62,6.1502]
[1746771021891,27.42,162.64,162.62,6.1502]
[1746771022092,27.42,162.64,162.57,29.4048]
[1746771022593,27.42,162.64,162.57,29.3848]
[1746771023796,27.42,162.66,162.57,29.3848]
[1746771024399,33.5688,162.66,162.62,6.15]
[1746771024795,33.5688,162.66,162.57,29.3848]
[1746771025497,27.42,162.67,162.59,6.12805579]
[1746771025799,27.42,162.67,162.6,31.494]
[1746771025999,27.42,162.7,162.62,6.12805579]
[1746771026399,33.5672,162.7,162.67,6.1481]
[1746771026600,33.5672,162.7,162.62,6.12805579]
[1746771026999,33.5672,162.7,162.66,6.1486]
[1746771028301,33.5672,162.7,162.67,6.1483]
[1746771028703,27.42,162.7,162.62,33.52805579]
[1746771028999,27.42,162.7,162.68,6.1476]
[1746771030905,33.5673,162.7,162.62,33.52805579]
[1746771031098,27.42,162.7,162.62,33.52805579]
[1746771031403,27.42,162.7,162.68,6.1478]
[1746771031603,27.42,162.7,162.62,33.52805579]
[1746771031902,27.42,162.7,162.67,6.1481]
[1746771032201,27.42,162.7,162.62,33.52805579]
[1746771033905,27.42,162.7,162.67,6.1481]
[1746771034102,33.5672,162.7,162.67,6.1481]
[1746771034600,33.5672,162.7,162.62,33.52805579]
[1746771034601,6.1477,162.69,162.62,33.52805579]
[1746771034804,27.42,162.7,162.61,27.42]
[1746771035102,27.42,162.7,162.64,6.1492]
[1746771036000,27.42,162.7,162.63,6.1497]
[1746771036503,6.1486,162.67,162.63,6.1497]
[1746771036699,27.38,162.66,162.63,6.1497]
[1746771036901,27.38,162.66,162.64,6.1494]
[1746771038801,27.38,162.66,162.65,6.149]
[1746771045106,60.9078,162.69,162.6,29.4736]
[1746771045707,60.9078,162.69,162.65,6.1488]
[1746771046300,27.38,162.69,162.67,6.1482]
[1746771046803,27.38,162.69,162.61,2.0587]
[1746771047004,27.38,162.69,162.68,6.1479]
[1746771050405,29.3934,162.72,162.7,6.1471]
[1746771050705,27.38,162.72,162.7,6.1471]
[1746771050905,27.38,162.72,162.65,6.12805579]
[1746771051410,27.38,162.72,162.68,1.0]
[1746771051609,27.38,162.76,162.68,1.0]
[1746771051809,29.416,162.77,162.68,7.12805579]
[1746771052001,29.416,162.77,162.68,34.48805579]
[1746771052202,29.416,162.77,162.74,6.1456]
[1746771052510,29.416,162.77,162.68,28.36]
[1746771052710,35.5606,162.77,162.72,6.1461]
[1746771052908,29.416,162.77,162.72,6.1461]
[1746771053509,29.416,162.77,162.7,6.1469]
[1746771053908,29.416,162.77,162.68,28.36]
[1746771054107,6.12805579,162.76,162.68,1.0]
[1746771054812,6.1467,162.72,162.68,7.1479]
[1746771055110,27.38,162.72,162.68,1.0]
[1746771055314,27.38,162.72,162.69,6.1472]
[1746771056213,27.38,162.75,162.68,1.0]
[1746771056709,33.5253,162.75,162.7,6.1468]
[1746771057013,27.38,162.75,162.68,1.0]
[1746771057214,27.38,162.75,162.7,6.1471]
[1746771057415,27.38,162.75,162.68,1.0]
[1746771057812,27.38,162.75,162.71,6.1466]
[1746771058712,6.145,162.76,162.71,6.1466]
[1746771058913,33.505,162.76,162.71,6.1466]
[1746771059915,33.505,162.76,162.72,6.1463]
[1746771060213,6.1454,162.75,162.68,1.0]
[1746771060413,6.1454,162.75,162.7,6.1469]
[1746771061709,27.36,162.76,162.7,6.1469]
[1746771061915,6.1457,162.74,162.7,6.1469]
[1746771062716,6.1457,162.74,162.68,1.0]
[1746771062717,6.1465,162.72,162.68,7.1476]
[1746771063114,33.4865,162.72,162.68,1.0]
[1746771063313,27.34,162.72,162.69,6.1474]
[1746771063916,27.34,162.72,162.7,6.1469]
[1746771065318,2.036,162.77,162.68,1.0]
[1746771065514,54.7,162.76,162.68,1.0]
[1746771066216,27.34,162.76,162.68,28.36]
[1746771066817,27.34,162.76,162.73,6.1458]
[1746771067516,27.34,162.76,162.74,6.1456]
[1746771067914,27.34,162.76,162.68,28.36]
[1746771068709,27.34,162.76,162.73,6.1458]
[1746771068910,27.34,162.76,162.68,28.36]
[1746771069315,27.34,162.76,162.73,6.1457]
[1746771069917,27.34,162.76,162.74,6.1456]
[1746771072423,27.34,162.76,162.73,6.1459]
[1746771072624,27.34,162.76,162.68,28.36]
[1746771072823,27.34,162.76,162.68,34.48805579]
[1746771073022,27.34,162.76,162.75,6.1453]
[1746771073228,1.9942,162.77,162.75,6.1453]
[1746771074135,1.9942,162.77,162.68,34.48805579]
[1746771074734,1.9942,162.77,162.74,6.1453]
[1746771074929,1.9942,162.77,162.68,34.48805579]
[1746771075333,1.9942,162.77,162.75,6.145]
[1746771075835,1.9942,162.77,162.68,34.48805579]
[1746771076227,27.34,162.79,162.76,6.1449]
[1746771076431,1.9808,162.81,162.72,27.36]
[1746771076633,1.9808,162.81,162.73,27.36]
[1746771077232,8.1239,162.81,162.73,27.36]
[1746771077437,1.9808,162.81,162.73,27.36]
[1746771077640,1.9808,162.81,162.72,29.7176]
[1746771077843,6.1437,162.8,162.75,6.145]
[1746771078838,1.9808,162.81,162.72,29.7176]
[1746771079340,1.9808,162.81,162.78,6.1439]
[1746771079539,558.58,162.82,162.78,6.1439]
[1746771080035,27.34,162.82,162.79,6.1437]
[1746771080241,27.34,162.82,162.74,6.12805579]
[1746771080441,4.0036,162.84,162.75,27.34]
[1746771080641,4.0036,162.84,162.76,27.98]
[1746771080841,4.0036,162.84,162.8,6.1431]
[1746771081142,2.042,162.84,162.8,6.1431]
[1746771081341,2.042,162.84,162.76,27.98]
[1746771081537,2.042,162.84,162.81,6.1429]
[1746771081737,27.34,162.85,162.81,6.1429]
[1746771081940,33.4818,162.85,162.76,27.98]
[1746771082836,33.4818,162.85,162.79,6.1434]
[1746771083039,33.4818,162.85,162.76,27.98]
[1746771083238,27.34,162.85,162.81,6.143]
[1746771083543,27.34,162.85,162.76,27.98]
[1746771083740,33.4816,162.85,162.8,6.1431]
[1746771085647,6.1422,162.84,162.79,6.1438]
[1746771085841,28.18,162.83,162.73,27.34]
[1746771086044,28.18,162.83,162.73,55.56]
[1746771086239,4.0153,162.82,162.73,55.56]
[1746771086440,27.34,162.81,162.73,55.56]
[1746771086744,33.46805579,162.81,162.71,28.28]
[1746771086944,1.9992,162.8,162.71,28.28]
[1746771087145,6.1444,162.78,162.73,6.1459]
[1746771087640,28.28,162.79,162.71,28.28]
[1746771088245,28.28,162.79,162.71,28.42]
[1746771088447,28.28,162.79,162.75,6.1449]
[1746771091641,34.4238,162.79,162.75,6.1449]
[1746771093446,28.28,162.79,162.76,6.1449]
[1746771094451,34.4238,162.79,162.75,6.1452]
[1746771094747,34.4238,162.79,162.71,28.42]
[1746771095148,28.28,162.79,162.71,28.42]
[1746771095747,28.28,162.79,162.75,6.1449]
[1746771096250,34.4239,162.79,162.75,6.1449]
[1746771097251,6.1444,162.78,162.73,6.1457]
[1746771097544,6.1444,162.78,162.69,8.13025579]
[1746771097745,28.36,162.77,162.73,6.1457]
[1746771097945,34.5046,162.77,162.69,37.01025579]
[1746771098150,34.5046,162.77,162.69,30.8822]
[1746771098344,34.5046,162.77,162.73,6.1458]
[1746771098546,28.36,162.77,162.69,30.8822]
[1746771099043,28.36,162.77,162.73,6.1458]
[1746771099247,34.5047,162.77,162.73,6.1458]
[1746771100052,28.36,162.77,162.68,1.0]
[1746771100448,1.9711,162.76,162.68,1.0]
[1746771100952,6.1455,162.75,162.71,6.1466]
[1746771101251,1.9711,162.76,162.68,1.0]
[1746771101649,1.9711,162.76,162.73,6.1459]
[1746771101953,28.36,162.78,162.71,28.92]
[1746771102140,28.36,162.78,162.75,6.1449]
[1746771103152,1.9992,162.8,162.75,6.1449]
[1746771103354,34.5038,162.79,162.75,6.1449]
[1746771103553,28.36,162.79,162.71,28.92]
[1746771103955,28.36,162.79,162.77,6.1444]
[1746771104754,28.36,162.79,162.78,6.1441]
[1746771104955,28.36,162.79,162.73,6.12805579]
[1746771104956,1.9711,162.81,162.73,34.48805579]
[1746771105452,1.9711,162.81,162.73,36.52255579]
[1746771106449,2.0751,162.85,162.73,36.52255579]
[1746771106657,4.0027,162.88,162.79,6.12805579]
[1746771107045,4.0027,162.88,162.85,6.1414]
[1746771107248,4.0027,162.88,162.79,6.12805579]
[1746771107451,4.0027,162.88,162.79,8.07375579]
[1746771108454,28.36,162.89,162.79,8.07375579]
[1746771108656,28.36,162.89,162.79,10.02995579]
[1746771109246,28.36,162.89,162.86,6.1408]
[1746771109451,28.36,162.89,162.79,10.02995579]
[1746771109949,28.36,162.89,162.79,32.1657]
[1746771110254,1.922,162.88,162.79,32.1657]
[1746771110845,29.58,162.87,162.79,32.1657]
[1746771111950,29.58,162.87,162.79,1.9457]
[1746771112652,29.58,162.87,162.74,33.5163]
[1746771112855,6.1419,162.84,162.78,6.1438]
[1746771113157,30.82,162.83,162.74,33.5163]
[1746771113553,30.82,162.83,162.79,6.1434]
[1746771113955,30.82,162.83,162.79,7.1434]
[1746771114157,30.82,162.83,162.79,1.0]
[1746771114759,6.143,162.82,162.76,6.1448]
[1746771115161,6.1433,162.81,162.76,6.1448]
[1746771115360,36.94805579,162.83,162.75,6.1452]
[1746771115559,1.8997,162.8,162.75,6.1452]
[1746771115757,36.9641,162.79,162.73,6.1457]
[1746771115958,38.8648,162.79,162.7,67.82805579]
[1746771116661,38.8648,162.79,162.7,61.7]
[1746771117159,32.7207,162.79,162.7,61.7]
[1746771117661,30.82,162.79,162.7,61.7]
[1746771118353,30.82,162.79,162.75,6.145]
[1746771119863,36.9639,162.79,162.74,6.1456]
[1746771120459,30.82,162.79,162.73,6.1459]
[1746771120758,30.82,162.79,162.7,61.7]
[1746771120960,30.82,162.79,162.7,30.82]
[1746771121159,6.1442,162.78,162.73,6.146]
[1746771121466,30.82,162.79,162.7,30.82]
[1746771121667,36.9638,162.79,162.7,30.82]
[1746771121964,30.82,162.79,162.7,30.82]
[1746771122360,30.82,162.79,162.75,6.145]
[1746771122761,30.82,162.79,162.7,30.82]
[1746771122968,30.82,162.79,162.75,6.1449]
[1746771123161,30.82,162.79,162.7,30.82]
[1746771124060,30.82,162.79,162.75,6.1449]
[1746771124257,30.82,162.79,162.7,30.82]
[1746771124459,30.82,162.79,162.69,36.8317]
[1746771124662,8.1863,162.78,162.73,6.1458]
[1746771125069,2.0419,162.78,162.73,6.1458]
[1746771125367,8.1862,162.78,162.73,6.1458]
[1746771125564,2.0419,162.78,162.72,6.1463]
[1746771125767,31.0,162.77,162.72,6.1463]
[1746771125970,6.1452,162.76,162.67,30.82]
[1746771126165,30.82,162.75,162.71,6.1467]
[1746771126571,36.9655,162.75,162.71,6.1467]
[1746771126871,30.82,162.75,162.72,6.1463]
[1746771129273,30.82,162.75,162.67,30.82]
[1746771129569,36.9653,162.75,162.71,6.1464]
[1746771129769,30.82,162.75,162.71,6.1464]
[1746771130171,30.82,162.75,162.73,6.1458]
[1746771131877,30.82,162.75,162.74,6.1456]
[1746771132169,30.82,162.75,162.67,30.82]
[1746771132973,30.82,162.75,162.73,6.1458]
[1746771133673,8.1862,162.78,162.73,6.1458]
[1746771133876,30.82,162.77,162.73,6.1458]
[1746771134372,6.1449,162.76,162.67,30.82]
[1746771134977,6.1449,162.76,162.72,6.1463]
[1746771135273,30.82,162.77,162.67,30.82]
[1746771135674,30.82,162.77,162.74,6.1454]
[1746771136270,36.9645,162.77,162.69,31.1]
[1746771136769,36.9645,162.77,162.72,6.146]
[1746771137275,36.9645,162.77,162.69,31.1]
[1746771137474,30.82,162.77,162.69,31.1]
[1746771138173,6.1451,162.76,162.71,6.1466]
[1746771138478,6.1451,162.76,162.69,31.1]
[1746771138976,30.82,162.77,162.69,31.1]
[1746771139171,30.82,162.77,162.71,6.1465]
[1746771140274,30.82,162.77,162.72,6.1464]
[1746771140771,6.1455,162.75,162.72,6.1464]
[1746771142078,6.1457,162.74,162.71,6.1467]
[1746771143378,6.1454,162.75,162.72,6.1463]
[1746771143771,30.82,162.77,162.67,30.82]
[1746771144178,6.1459,162.74,162.71,6.1468]
[1746771144778,30.82,162.77,162.67,30.82]
[1746771145883,6.1464,162.72,162.69,6.1473]
[1746771146881,36.9662,162.73,162.7,6.1471]
[1746771147983,6.1464,162.72,162.69,6.1474]
[1746771149479,30.82,162.73,162.54,47.55783538]
[1746771149480,6.1471,162.71,162.68,7.1479]
[1746771149678,6.1471,162.71,162.68,1.0]
[1746771150687,6.1471,162.71,162.68,7.1477]
[1746771150987,10.1512,162.72,162.68,1.0]
[1746771151485,10.1512,162.72,162.69,6.1475]
[1746771152285,6.1468,162.71,162.68,7.1478]
[1746771154486,6.1468,162.71,162.69,6.1475]
[1746771154687,10.1514,162.72,162.69,6.1475]
[1746771155388,32.8795,162.73,162.68,1.0]
[1746771155584,30.82,162.73,162.68,1.0]
[1746771156186,30.82,162.73,162.71,6.1467]
[1746771157187,6.1459,162.74,162.71,6.1467]
[1746771157384,30.82,162.73,162.71,6.1467]
[1746771157783,6.1454,162.75,162.72,6.1464]
[1746771157988,30.82,162.74,162.72,6.1464]
[1746771160389,36.9657,162.74,162.71,6.1466]
[1746771162391,6.1461,162.73,162.7,6.147]
[1746771163293,30.82,162.74,162.69,6.1474]
[1746771163696,30.82,162.74,162.68,1.0]
[1746771163992,6.147,162.71,162.68,7.1478]
[1746771164493,36.94073379,162.74,162.68,1.0]
[1746771164697,6.1475,162.7,162.68,1.0]
[1746771165700,6.1475,162.69,162.68,1.0]
[1746771167993,6.1484,162.67,162.64,6.1493]
[1746771168197,42.82813379,162.7,162.61,65.95232738]
[1746771168398,42.82813379,162.7,162.62,6.15]
[1746771168801,42.82813379,162.7,162.61,65.95232738]
[1746771169000,42.82813379,162.7,162.64,6.1491]
[1746771169198,6.1481,162.68,162.61,65.95232738]
[1746771169508,6.1481,162.68,162.65,6.1489]
[1746771173003,36.7074,162.7,162.61,65.95232738]
[1746771173403,32.8435,162.7,162.61,67.91892738]
[1746771174405,38.9907,162.7,162.61,67.91892738]
[1746771175106,6.1476,162.69,162.64,6.1491]
[1746771175308,32.8435,162.7,162.61,67.91892738]
[1746771175699,6.1481,162.68,162.63,6.1495]
[1746771175911,32.8435,162.7,162.63,6.1495]
[1746771176506,6.1485,162.67,162.63,6.1495]
[1746771178215,6.148,162.68,162.64,6.1493]
[1746771178408,6.148,162.68,162.61,98.75892738]
[1746771178608,32.8435,162.7,162.61,98.75892738]
[1746771178907,6.1486,162.67,162.63,6.1497]
[1746771179511,6.148,162.68,162.63,6.1497]
[1746771180113,6.148,162.68,162.64,6.1493]
[1746771180416,6.1476,162.69,162.64,6.1493]
[1746771180613,6.1476,162.69,162.61,98.75892738]
[1746771180812,32.8435,162.7,162.61,98.75892738]
[1746771181417,6.1479,162.69,162.64,6.1491]
[1746771181619,6.1479,162.69,162.61,98.75892738]
[1746771182517,6.1479,162.69,162.66,6.1484]
[1746771183014,6.148,162.68,162.64,6.1492]
[1746771183206,32.8435,162.7,162.61,98.75892738]
[1746771183413,6.148,162.68,162.61,98.75892738]
[1746771185115,6.1476,162.69,162.61,98.75892738]
[1746771185513,32.8435,162.7,162.67,6.1483]
[1746771185707,38.991,162.7,162.61,98.75892738]
[1746771186212,38.991,162.7,162.61,32.8066]
[1746771186516,6.1476,162.69,162.61,32.8066]
[1746771187118,38.9908,162.7,162.66,6.1487]
[1746771187319,32.8435,162.7,162.66,6.1487]
[1746771187515,32.8435,162.7,162.61,32.8066]
[1746771187711,6.1475,162.69,162.61,2.9666]
[1746771188219,6.1475,162.69,162.64,6.1492]
[1746771188517,32.8435,162.7,162.61,1.0]
[1746771189418,32.8435,162.7,162.63,6.1497]
[1746771189923,4.0804,162.69,162.61,1.0]
[1746771190114,6.1488,162.66,162.63,6.1498]
[1746771190315,35.9888,162.66,162.63,6.1498]
[1746771190514,29.84,162.66,162.63,6.1498]
[1746771190717,29.84,162.66,162.62,6.1501]
[1746771191018,29.84,162.66,162.61,1.0]
[1746771192022,35.9889,162.66,162.62,6.1501]
[1746771192515,6.1491,162.65,162.62,6.1501]
[1746771193121,35.9887,162.66,162.62,6.1501]
[1746771193421,35.9887,162.66,162.63,6.1498]
[1746771193827,35.9887,162.66,162.62,6.1501]
[1746771194424,6.1491,162.65,162.62,6.1501]
[1746771194721,6.1491,162.65,162.61,7.1505]
[1746771195023,6.1491,162.65,162.61,1.0]
[1746771196222,6.1491,162.65,162.62,6.1502]
[1746771196715,6.1491,162.65,162.61,7.1504]
[1746771197223,6.1491,162.65,162.62,6.15]
[1746771200424,6.1491,162.65,162.61,7.1504]
[1746771200628,29.84,162.66,162.61,7.1504]
[1746771201128,6.1493,162.65,162.61,7.1504]
[1746771201424,29.84,162.66,162.61,7.1504]
[1746771201929,29.84,162.66,162.61,1.0]
[1746771202529,29.84,162.66,162.64,6.1493]
[1746771203530,29.84,162.69,162.61,7.12073379]
[1746771203925,29.84,162.69,162.67,6.1481]
[1746771206730,29.84,162.69,162.68,6.1479]
[1746771207031,531.34,162.71,162.63,2.098]
[1746771207334,531.34,162.71,162.68,6.1477]
[1746771208438,531.34,162.71,162.69,6.1475]
[1746771208838,531.34,162.71,162.64,2.1078]
[1746771209241,35.3864,162.72,162.64,2.1078]
[1746771209542,35.3864,162.72,162.68,6.1477]
[1746771209842,29.24,162.72,162.64,2.1078]
[1746771211444,35.3864,162.72,162.64,2.1078]
[1746771211847,29.24,162.72,162.69,6.1475]
[1746771212339,29.24,162.72,162.64,2.1078]
[1746771212944,6.147,162.71,162.68,6.1479]
[1746771213147,6.147,162.71,162.64,2.1078]
[1746771213547,6.147,162.71,162.67,6.148]
[1746771213947,6.147,162.71,162.64,2.1078]
[1746771214146,35.3865,162.72,162.64,2.1078]
[1746771214447,29.24,162.72,162.64,2.1078]
[1746771214749,29.24,162.72,162.69,6.1473]
[1746771214948,29.24,162.72,162.64,2.1078]
[1746771215852,6.147,162.71,162.67,6.1482]
[1746771217241,6.1473,162.7,162.67,6.1482]
[1746771218854,6.1473,162.7,162.68,6.1479]
[1746771219750,35.3865,162.72,162.67,6.1482]
[1746771220051,29.24,162.72,162.64,2.1078]
[1746771220246,35.36073379,162.72,162.66,6.1484]
[1746771220442,8.0669,162.71,162.61,1.0]
[1746771220644,28.9,162.7,162.61,1.0]
[1746771221048,29.24,162.72,162.61,1.0]
[1746771221347,29.24,162.72,162.69,6.1472]
[1746771221645,29.24,162.72,162.64,28.88]
[1746771222245,29.24,162.72,162.71,6.1468]
[1746771223157,29.24,162.72,162.7,6.147]
[1746771223360,29.24,162.72,162.64,28.88]
[1746771223757,29.24,162.72,162.71,6.1468]
[1746771224154,31.16,162.75,162.65,6.0499]
[1746771224865,31.16,162.75,162.72,6.1462]
[1746771225258,37.3053,162.75,162.72,6.1462]
[1746771225458,31.16,162.75,162.65,6.0499]
[1746771225665,31.16,162.75,162.7,6.147]
[1746771226162,31.16,162.75,162.71,6.1467]
[1746771227661,6.146,162.73,162.65,6.0499]
[1746771227863,6.146,162.73,162.66,28.84]
[1746771228063,31.16,162.75,162.66,28.84]
[1746771228260,6.1467,162.72,162.66,28.84]
[1746771228462,31.16,162.75,162.65,1.969]
[1746771228658,31.16,162.75,162.64,28.84]
[1746771228860,6.1467,162.72,162.68,6.1477]
[1746771229155,29.24,162.71,162.68,6.1477]
[1746771229661,35.3868,162.71,162.68,6.1477]
[1746771231062,29.24,162.71,162.68,6.1477]
[1746771231263,29.24,162.71,162.69,6.1475]
[1746771231458,29.24,162.71,162.63,58.02]
[1746771232964,35.3868,162.71,162.68,6.1477]
[1746771233165,29.24,162.71,162.68,6.1477]
[1746771233670,29.24,162.71,162.67,6.1482]
[1746771234268,35.3869,162.71,162.67,6.1482]
[1746771234969,35.3869,162.71,162.68,6.1478]
[1746771235572,35.3869,162.71,162.67,6.1482]
[1746771236268,35.3869,162.71,162.68,6.1479]
[1746771236772,29.24,162.71,162.68,6.1479]
[1746771237371,35.3868,162.71,162.68,6.1479]
[1746771237573,29.24,162.71,162.69,6.1474]
[1746771237774,29.24,162.71,162.66,3.91832576]
[1746771238473,35.3868,162.71,162.66,3.91832576]
[1746771238675,33.15832576,162.71,162.66,1.0]
[1746771238967,10.06612576,162.69,162.66,1.0]
[1746771239173,3.91832576,162.69,162.66,1.0]
[1746771239767,3.91832576,162.67,162.66,1.0]
[1746771239967,32.59832576,162.67,162.66,1.0]